fUST/lending_fUST_20240412
["ID","MTS","AMOUNT","RATE_DAILY","PERIOD"]
[322220928,1712890231830,-220.30796474,0.00025452,2]
[322220930,1712890231839,-1045.58505954,0.00025452,2]
[322220932,1712890231852,-434.86756483,0.00025452,2]
[322220980,1712890237830,-280.8,0.00025452,2]
[322221090,1712890243067,-718.10203416,0.00025452,2]
[322221092,1712890243077,-160.7684773,0.00025654,2]
[322221094,1712890243087,-162.792895,0.00025821,2]
[322221095,1712890243097,-174.856418,0.00025826,2]
[322221097,1712890243106,-160.7684773,0.0002627,2]
[322221099,1712890243116,-153.0,0.00026849,2]
[322221101,1712890243125,-153.0,0.00026849,2]
[322221103,1712890243135,-153.0,0.00026849,2]
[322221105,1712890243144,-152.31314941,0.00026849,2]
[322221107,1712890243156,-0.68685059,0.00026849,2]
[322221109,1712890243166,-154.5586241,0.00026878,2]
[322221111,1712890243176,-218.04452531,0.00026878,2]
[322221113,1712890243188,-87.95547469,0.00026878,2]
[322221115,1712890243198,-160.7684773,0.00026887,2]
[322221117,1712890243207,-122.81604801,0.00027123,3]
[322221119,1712890243219,-38.93123734,0.00027123,3]
[322221121,1712890243228,-153.0,0.000272,2]
[322221123,1712890243237,-300.0,0.00027237,2]
[322221124,1712890243246,-118.26126434,0.00027237,2]
[322221245,1712890244409,220.30796474,0.00025,2]
[322222820,1712890432123,235.88504197,0.00021,2]
[322222821,1712890432333,9815.58843113,0.0002,2]
[322222823,1712890466729,1164.52693544,0.000176,2]
[322222825,1712890479504,1677.63492778,0.0002,2]
[322222826,1712890701728,227.75595054,0.00023352,2]
[322222827,1712891226154,-150.0,0.0002417,2]
[322222828,1712891226178,-266.64713088,0.00024656,5]
[322222829,1712891226199,-220.30796474,0.00025452,2]
[322222830,1712891226219,-503.5914787,0.00025482,2]
[322222831,1712891226241,-200.0,0.00025549,2]
[322222832,1712891226261,-162.792895,0.00025585,2]
[322222833,1712891226285,-161.28310589,0.00025605,2]
[322222834,1712891226305,-175.739345,0.00025705,2]
[322222835,1712891226326,-52.38390445,0.00026191,2]
[322222836,1712891254148,-772.33896118,0.00026191,2]
[322222837,1712891254170,-55.76137004,0.00026567,2]
[322222838,1712891304309,150.0,0.00023382,2]
[322222840,1712891347099,-156.87945876,0.00025,2]
[322222841,1712891354115,-250.0,0.00026154,2]
[322222842,1712891354137,-3301.4430133,0.00026155,2]
[322222843,1712891354158,-372.31520777,0.00026191,2]
[322222844,1712891354179,-1736.13268916,0.00026567,2]
[322222845,1712891354200,-300.0,0.00026799,2]
[322222846,1712891354220,-300.0,0.00026799,2]
[322222847,1712891354239,-2041.91096361,0.000268,2]
[322222848,1712891361225,156.87945876,0.00025,2]
[322222849,1712891381226,156.87945876,0.00025,2]
[322222850,1712891401234,156.87945876,0.00025,2]
[322222851,1712891419239,156.87945876,0.00025,2]
[322222881,1712891439281,196.67279182,0.00025,2]
[322222923,1712892269958,5000.0,0.000251,7]
[322222924,1712892293335,2437.55848505,0.000251,7]
[322222925,1712892330645,200.0,0.00023976,2]
[322222926,1712892428119,-1854.77424007,0.0002469,2]
[322222927,1712892428140,-2094.57281327,0.0002469,2]
[322222928,1712892428160,-875.47790871,0.00024691,2]
[322222929,1712892428179,-250.0,0.00024692,2]
[322222930,1712892428200,-300.0,0.00024697,2]
[322222931,1712892428220,-300.0,0.00024697,2]
[322222932,1712892428240,-150.0,0.000247,2]
[322222933,1712892428260,-8301.764419,0.00024969,2]
[322222934,1712892428284,-220.30796474,0.000251,2]
[322222935,1712892428304,-180.6549137,0.00025181,2]
[322222936,1712892428325,-1380.99269409,0.00025206,2]
[322222938,1712892452154,-202.39377541,0.00025,2]
[322222939,1712892452176,-11493.03933581,0.0002574,2]
[322222940,1712892510048,205.32552731,0.0002364,2]
[322222941,1712892599212,1000.0,0.000241,2]
[322223006,1712892632235,-300.0,0.00025739,2]
[322223007,1712892632244,-300.0,0.00025739,2]
[322223008,1712892632255,-2118.85052414,0.0002574,2]
[322223009,1712892632289,-706.99,0.0002574,2]
[322223010,1712892632300,-10391.17412535,0.0002574,2]
[322223011,1712892632309,-160.03796543,0.000265,2]
[322223012,1712892632320,-867.4414642,0.00026599,3]
[322223023,1712892632442,-153.90176672,0.000266,2]
[322223025,1712892632452,-435.93996497,0.00026698,2]
[322223027,1712892632461,-1866.02681334,0.00026698,2]
[322223030,1712892632471,-868.55557949,0.00026698,2]
[322223032,1712892632480,-2093.77755635,0.00026698,2]
[322223034,1712892632488,-500.0,0.00026699,2]
[322223036,1712892632497,-500.0,0.00026699,2]
[322223038,1712892632508,-500.0,0.00026699,2]
[322223039,1712892632517,-384.21136332,0.00026699,2]
[322223041,1712892632526,-500.0,0.00026699,2]
[322223043,1712892632535,-300.0,0.00026699,2]
[322223045,1712892632544,-34892.29574161,0.000267,2]
[322223047,1712892632554,-274.695856,0.000267,2]
[322223049,1712892632563,-274.695856,0.000267,2]
[322223052,1712892632572,-274.695856,0.000267,2]
[322223053,1712892632582,-274.695856,0.000267,2]
[322223055,1712892632591,-27958.08903639,0.000268,2]
[322223057,1712892632600,-274.695856,0.000268,2]
[322223059,1712892632609,-274.695856,0.000268,2]
[322223061,1712892632619,-274.695856,0.000268,2]
[322223063,1712892632628,-274.695856,0.000268,2]
[322223065,1712892632637,-151.0,0.000268,2]
[322223067,1712892632647,-152.943425,0.000268,2]
[322223070,1712892632656,-778.3928466,0.000268,2]
[322223210,1712892638168,-1355.5230304,0.000268,2]
[322223212,1712892638178,-2008.73897446,0.000268,2]
[322223278,1712892638920,-125.17690254,0.000268,2]
[322223279,1712892638930,-2133.915877,0.000268,2]
[322223280,1712892638942,-2133.915877,0.000268,2]
[322223281,1712892638952,-401.740149,0.000268,2]
[322223282,1712892638961,-401.740149,0.000268,2]
[322223283,1712892638971,-401.740149,0.000268,2]
[322223284,1712892638980,-401.740149,0.000268,2]
[322223285,1712892638989,-151.0,0.000268,2]
[322223286,1712892638998,-151.0,0.000268,2]
[322223287,1712892639008,-306.0,0.000268,2]
[322223288,1712892639018,-151.0,0.000268,2]
[322223289,1712892639027,-151.0,0.000268,2]
[322223290,1712892639036,-151.0,0.000268,2]
[322223291,1712892639045,-151.0,0.000268,2]
[322223292,1712892639055,-153.90176671,0.00026832,2]
[322223293,1712892639064,-161.74728536,0.00026965,3]
[322223294,1712892639073,-160.03796543,0.00027036,2]
[322223295,1712892639083,-153.90176671,0.00027065,2]
[322223296,1712892639092,-500.0,0.00027237,2]
[322223297,1712892639101,-281.35920219,0.00027237,2]
[322223298,1712892639110,-401.740149,0.00027237,2]
[322223299,1712892639119,-401.740149,0.00027237,2]
[322223300,1712892639128,-151.0,0.00027237,2]
[322223301,1712892639138,-151.0,0.00027237,2]
[322223303,1712892639147,-151.0,0.00027237,2]
[322223305,1712892639159,-17962.36647895,0.00027238,2]
[322223307,1712892639168,-151.0,0.00027238,2]
[322223309,1712892639178,-151.0,0.00027238,2]
[322223311,1712892639187,-274.695856,0.00027238,2]
[322223313,1712892639197,-274.695856,0.00027238,2]
[322223315,1712892639206,-274.695856,0.00027238,2]
[322223317,1712892639215,-274.695856,0.00027238,2]
[322223319,1712892639225,-274.695856,0.00027238,2]
[322223320,1712892639234,-274.695856,0.00027238,2]
[322223321,1712892639243,-274.695856,0.00027238,2]
[322223322,1712892639252,-274.695856,0.00027238,2]
[322223323,1712892639262,-274.695856,0.00027238,2]
[322223324,1712892639272,-274.695856,0.00027238,2]
[322223325,1712892639281,-2133.915877,0.00027238,2]
[322223326,1712892639290,-2133.915877,0.00027238,2]
[322223327,1712892639298,-2133.915877,0.00027238,2]
[322223328,1712892639308,-2133.915877,0.00027238,2]
[322223329,1712892639317,-2133.915877,0.00027238,2]
[322223330,1712892639329,-2133.915877,0.00027238,2]
[322223331,1712892639337,-2133.915877,0.00027238,2]
[322223332,1712892639346,-2133.915877,0.00027238,2]
[322223333,1712892639356,-2133.915877,0.00027238,2]
[322223334,1712892639367,-2133.915877,0.00027238,2]
[322223335,1712892639376,-401.740149,0.00027238,2]
[322223336,1712892639384,-401.740149,0.00027238,2]
[322223337,1712892639394,-401.740149,0.00027238,2]
[322223338,1712892639403,-401.740149,0.00027238,2]
[322223339,1712892639414,-401.740149,0.00027238,2]
[322223340,1712892639423,-401.740149,0.00027238,2]
[322223341,1712892639432,-401.740149,0.00027238,2]
[322223342,1712892639442,-401.740149,0.00027238,2]
[322223343,1712892639450,-401.740149,0.00027238,2]
[322223344,1712892639459,-401.740149,0.00027238,2]
[322223345,1712892639468,-401.740149,0.00027238,2]
[322223346,1712892639477,-401.740149,0.00027238,2]
[322223347,1712892639486,-151.0,0.00027238,2]
[322223348,1712892639497,-151.0,0.00027238,2]
[322223349,1712892639506,-151.642072,0.00027238,2]
[322223350,1712892639518,-151.0,0.00027238,2]
[322223351,1712892639527,-151.0,0.00027238,2]
[322223352,1712892639537,-151.0,0.00027238,2]
[322223353,1712892639546,-151.0,0.00027238,2]
[322223354,1712892639556,-151.0,0.00027238,2]
[322223355,1712892639564,-151.0,0.00027238,2]
[322223356,1712892639573,-151.0,0.00027238,2]
[322223357,1712892639582,-151.0,0.00027238,2]
[322223358,1712892639591,-151.0,0.00027238,2]
[322223359,1712892639601,-151.0,0.00027238,2]
[322223360,1712892639610,-247.488042,0.00027238,2]
[322223361,1712892639620,-273.63999998,0.00027295,2]
[322223362,1712892639629,-153.90176671,0.00027297,2]
[322223363,1712892639638,-274.695856,0.000273,2]
[322223364,1712892639648,-274.695851,0.000273,2]
[322223365,1712892639657,-586.0,0.000273,2]
[322223366,1712892639666,-250.0,0.00027394,2]
[322223367,1712892639676,-887.0189653,0.00027395,2]
[322223369,1712892639685,-1931.15529922,0.00027395,2]
[322223370,1712892639695,-2121.71958913,0.00027395,2]
[322223371,1712892639705,-562.4278214,0.00027395,2]
[322223372,1712892639714,-207.18381603,0.00027395,2]
[322223373,1712892639724,-1579.80828461,0.00027395,2]
[322223374,1712892639734,-155.06582961,0.00027395,2]
[322223376,1712892639744,-342.49538997,0.00027395,2]
[322223377,1712892639753,-719.48645526,0.00027395,2]
[322223378,1712892639763,-680.90479946,0.00027395,2]
[322223379,1712892639773,-272.01530939,0.00027395,2]
[322223380,1712892639782,-429.00963988,0.00027395,2]
[322223381,1712892639791,-551.38910976,0.00027395,2]
[322223382,1712892639800,-183.44182176,0.00027395,2]
[322223383,1712892639810,-524.88907768,0.00027395,4]
[322223384,1712892639821,-154.86062544,0.00027395,2]
[322223385,1712892639830,-470.13868753,0.00027395,2]
[322223386,1712892639839,-5590.24160414,0.00027395,2]
[322223387,1712892639850,-2948.83061181,0.00027395,2]
[322223388,1712892639859,-189.56884564,0.00027395,2]
[322223389,1712892639868,-239.442113,0.00027395,2]
[322223390,1712892639878,-151.0,0.00027395,2]
[322223391,1712892639887,-151.0,0.00027395,2]
[322223392,1712892639897,-151.0,0.00027395,2]
[322223394,1712892639906,-151.0,0.00027395,2]
[322223395,1712892639916,-151.0,0.00027395,2]
[322223397,1712892639925,-151.0,0.00027395,2]
[322223399,1712892639935,-151.0,0.00027395,2]
[322223401,1712892639945,-198.542405,0.00027395,2]
[322223402,1712892639954,-2133.915877,0.00027395,2]
[322223404,1712892639964,-2133.915877,0.00027395,2]
[322223406,1712892639974,-2133.915877,0.00027395,2]
[322223408,1712892639983,-2133.915877,0.00027395,2]
[322223410,1712892639992,-2133.915877,0.00027395,2]
[322223411,1712892640002,-2133.91587,0.00027395,2]
[322223412,1712892640011,-401.740149,0.00027395,2]
[322223413,1712892640021,-401.740154,0.00027395,2]
[322223414,1712892640030,-151.0,0.00027395,2]
[322223415,1712892640040,-155.80459589,0.00027396,2]
[322223416,1712892640049,-7981.42717621,0.00027396,2]
[322223417,1712892640058,-500.0,0.00027397,2]
[322223418,1712892640067,-500.0,0.00027397,2]
[322223419,1712892640076,-502.46128,0.00027397,2]
[322223420,1712892640086,-377.81409221,0.00027397,2]
[322223421,1712892640095,-491.61507608,0.00027397,2]
[322223422,1712892640104,-500.0,0.00027397,2]
[322223423,1712892640114,-502.95760247,0.00027397,2]
[322223427,1712892640218,-511.92886958,0.00027397,2]
[322223428,1712892640228,-300.0,0.00027397,2]
[322223429,1712892640237,-500.0,0.00027397,2]
[322223430,1712892640247,-500.0,0.00027397,2]
[322223431,1712892640256,-500.0,0.00027397,2]
[322223432,1712892640266,-500.0,0.00027397,2]
[322223433,1712892640276,-501.55859758,0.00027397,2]
[322223434,1712892640285,-500.0,0.00027397,2]
[322223435,1712892640294,-500.0,0.00027397,2]
[322223436,1712892640304,-501.83932615,0.00027397,2]
[322223437,1712892640313,-502.99022729,0.00027397,2]
[322223438,1712892640329,-550.84663727,0.00027397,2]
[322223439,1712892640339,-500.0,0.00027397,2]
[322223440,1712892640348,-500.0,0.00027397,2]
[322223441,1712892640358,-506.67465681,0.00027397,2]
[322223443,1712892640368,-500.0,0.00027397,2]
[322223445,1712892640378,-500.0,0.00027397,2]
[322223447,1712892640387,-302.32765203,0.00027397,2]
[322223449,1712892640396,-500.0,0.00027397,2]
[322223451,1712892640407,-500.0,0.00027397,2]
[322223453,1712892640416,-500.0,0.00027397,2]
[322223455,1712892640426,-507.40810054,0.00027397,2]
[322223456,1712892640435,-845.87,0.00027397,2]
[322223458,1712892640444,-500.0,0.00027397,2]
[322223460,1712892640453,-500.0,0.00027397,2]
[322223462,1712892640462,-506.28627702,0.00027397,2]
[322223464,1712892640471,-500.0,0.00027397,2]
[322223466,1712892640480,-504.20478867,0.00027397,2]
[322223468,1712892640489,-500.0,0.00027397,2]
[322223470,1712892640498,-503.9535518,0.00027397,2]
[322223472,1712892640507,-269.49487867,0.00027397,2]
[322223474,1712892640517,-500.0,0.00027397,2]
[322223476,1712892640526,-500.0,0.00027397,2]
[322223478,1712892640536,-504.18011752,0.00027397,2]
[322223480,1712892640544,-500.0,0.00027397,2]
[322223482,1712892640553,-509.23926256,0.00027397,2]
[322223484,1712892640562,-519.19943181,0.00027397,2]
[322223486,1712892640571,-517.16600379,0.00027397,2]
[322223488,1712892640579,-500.0,0.00027397,2]
[322223490,1712892640589,-500.0,0.00027397,2]
[322223492,1712892640598,-504.50110514,0.00027397,2]
[322223494,1712892640607,-250.41329298,0.00027397,2]
[322223496,1712892640616,-500.0,0.00027397,2]
[322223498,1712892640625,-500.0,0.00027397,2]
[322223500,1712892640634,-503.62857712,0.00027397,2]
[322223502,1712892640643,-500.0,0.00027397,2]
[322223504,1712892640653,-500.0,0.00027397,2]
[322223506,1712892640662,-500.0,0.00027397,2]
[322223508,1712892640671,-500.0,0.00027397,2]
[322223510,1712892640680,-500.0,0.00027397,2]
[322223512,1712892640689,-500.0,0.00027397,2]
[322223514,1712892640698,-500.0,0.00027397,2]
[322223516,1712892640707,-510.18250544,0.00027397,2]
[322223518,1712892640717,-500.0,0.00027397,2]
[322223520,1712892640725,-499.22036321,0.00027397,2]
[322223522,1712892640735,-504.78394328,0.00027397,2]
[322223524,1712892640744,-500.0,0.00027397,2]
[322223526,1712892640753,-527.74,0.00027397,2]
[322223528,1712892640762,-500.0,0.00027397,2]
[322223530,1712892640772,-500.0,0.00027397,2]
[322223532,1712892640781,-500.0,0.00027397,2]
[322223534,1712892640790,-500.0,0.00027397,2]
[322223536,1712892640800,-500.0,0.00027397,2]
[322223538,1712892640809,-500.0,0.00027397,2]
[322223540,1712892640817,-504.60840283,0.00027397,2]
[322223541,1712892640826,-504.68886037,0.00027397,2]
[322223543,1712892640836,-503.03800934,0.00027397,2]
[322223546,1712892640845,-971.51,0.00027397,2]
[322223548,1712892640854,-503.67402137,0.00027397,2]
[322223549,1712892640865,-1534.9,0.00027397,2]
[322223551,1712892640874,-500.0,0.00027397,2]
[322223553,1712892640883,-500.0,0.00027397,2]
[322223555,1712892640893,-1246.79,0.00027397,2]
[322223557,1712892640902,-500.0,0.00027397,2]
[322223560,1712892640911,-503.97081035,0.00027397,2]
[322223562,1712892640920,-500.0,0.00027397,2]
[322223564,1712892640930,-500.0,0.00027397,2]
[322223566,1712892640939,-504.60813006,0.00027397,2]
[322223568,1712892640948,-506.10781778,0.00027397,2]
[322223570,1712892640957,-500.0,0.00027397,2]
[322223572,1712892640966,-500.0,0.00027397,2]
[322223573,1712892640975,-500.0,0.00027397,2]
[322223576,1712892640985,-500.0,0.00027397,2]
[322223578,1712892640994,-802.31,0.00027397,2]
[322223580,1712892641003,-503.20569596,0.00027397,2]
[322223581,1712892641013,-504.39679158,0.00027397,2]
[322223583,1712892641021,-509.93844064,0.00027397,2]
[322223586,1712892641031,-500.0,0.00027397,2]
[322223587,1712892641040,-1202.9,0.00027397,2]
[322223589,1712892641050,-505.12758541,0.00027397,2]
[322223591,1712892641059,-500.0,0.00027397,2]
[322223593,1712892641068,-504.33573446,0.00027397,2]
[322223596,1712892641077,-1652.21,0.00027397,2]
[322223598,1712892641086,-577.73309065,0.00027397,2]
[322223600,1712892641096,-769.86,0.00027397,2]
[322223602,1712892641105,-604.95842101,0.00027397,2]
[322223604,1712892641114,-3200.53,0.00027397,2]
[322223606,1712892641126,-500.0,0.00027397,2]
[322223608,1712892641137,-2459.06,0.00027397,2]
[322223609,1712892641147,-500.0,0.00027397,2]
[322223611,1712892641157,-500.0,0.00027397,2]
[322223614,1712892641167,-500.0,0.00027397,2]
[322223616,1712892641176,-1187.31,0.00027397,2]
[322223618,1712892641186,-500.0,0.00027397,2]
[322223619,1712892641195,-1408.01,0.00027397,2]
[322223621,1712892641204,-1490.69,0.00027397,2]
[322223623,1712892641213,-4811.22,0.00027397,2]
[322223625,1712892641222,-13555.78,0.00027397,2]
[322223627,1712892641232,-508.98,0.00027397,2]
[322223629,1712892641240,-500.0,0.00027397,2]
[322223631,1712892641249,-574.50682308,0.00027397,2]
[322223633,1712892641259,-1451.47,0.00027397,2]
[322223635,1712892641269,-500.0,0.00027397,2]
[322223637,1712892641279,-1159.16,0.00027397,2]
[322223639,1712892641289,-500.0,0.00027397,2]
[322223641,1712892641298,-500.0,0.00027397,2]
[322223644,1712892641307,-565.85430167,0.00027397,2]
[322223646,1712892641317,-500.0,0.00027397,2]
[322223648,1712892641328,-506.43407223,0.00027397,2]
[322223649,1712892641338,-500.0,0.00027397,2]
[322223651,1712892641347,-500.0,0.00027397,2]
[322223653,1712892641356,-504.71115212,0.00027397,2]
[322223655,1712892641366,-330.49353183,0.00027397,2]
[322223879,1712892643462,-924.62646817,0.00027397,2]
[322223881,1712892643472,-275.31262072,0.00027397,2]
[322223884,1712892643485,-224.68737928,0.00027397,2]
[322223885,1712892643494,-500.0,0.00027397,2]
[322223887,1712892643503,-308.5451787,0.00027397,2]
[322223896,1712892643576,-2.6960116,0.00027397,2]
[322223915,1712892643684,-188.7588097,0.00027397,2]
[322223918,1712892643693,-500.0,0.00027397,2]
[322223921,1712892643702,-1362.76,0.00027397,2]
[322223924,1712892643711,-510.03336898,0.00027397,2]
[322223927,1712892643720,-500.0,0.00027397,2]
[322223930,1712892643729,-500.0,0.00027397,2]
[322223933,1712892643739,-500.0,0.00027397,2]
[322223936,1712892643748,-499.46014579,0.00027397,2]
[322223939,1712892643757,-500.0,0.00027397,2]
[322223942,1712892643767,-1099.7,0.00027397,2]
[322223944,1712892643777,-500.0,0.00027397,2]
[322223946,1712892643787,-3078.41178869,0.00027397,2]
[322224232,1712892646288,-3037.15280613,0.00027397,2]
[322224234,1712892646300,-2802.69032418,0.00027397,2]
[322224255,1712892646496,-150.01890394,0.00027397,2]
[322224676,1712892658537,4180.85860618,0.000241,2]
[322224677,1712892711244,220.22760662,0.00025,2]
[322224678,1712892715788,357.65520002,0.000251,2]
[322224679,1712892773583,-439.134816,0.00026556,2]
[322224680,1712892773608,-300.0,0.00027294,2]
[322224681,1712892773632,-300.0,0.00027294,2]
[322224682,1712892773656,-23360.865184,0.00027295,2]
[322224707,1712893420302,-150.0,0.00025297,2]
[322224708,1712893420332,-219.567408,0.00026353,2]
[322224709,1712893420358,-188.35631121,0.00027195,2]
[322224710,1712893420385,-160.03796543,0.00027197,2]
[322224711,1712893420411,-5743.86906997,0.00027295,2]
[322224712,1712893420435,-153.90176671,0.00027297,2]
[322224713,1712893420461,-114.26747868,0.00027297,3]
[322224715,1712893650129,-570.60858718,0.00027293,2]
[322224749,1712893832542,-150.0,0.00025195,2]
[322224751,1712893832551,-1308.46081651,0.00026395,2]
[322224753,1712893832562,-219.567408,0.00026396,2]
[322224755,1712893832571,-1887.09934564,0.00027296,2]
[322224758,1712893832596,-5039.38539207,0.00027296,2]
[322224760,1712893832606,-300.0,0.00027296,2]
[322224763,1712893832615,-300.0,0.00027296,2]
[322224765,1712893832625,-819.70318106,0.00027297,3]
[322224766,1712893832634,-151.191,0.00027344,2]
[322224768,1712893832643,-687.68483836,0.00027395,2]
[322224770,1712893832652,-1931.15529922,0.00027396,2]
[322224784,1712893832662,-650.84989361,0.00027396,2]
[322224786,1712893832775,-334.86822951,0.00027396,2]
[322224788,1712893832786,-486.77561449,0.00027396,2]
[322224790,1712893832795,-200.0,0.00027396,2]
[322224792,1712893832805,-500.0,0.00027397,2]
[322224793,1712893832814,-466.51618853,0.00027397,2]
[322224795,1712893832823,-831.46,0.00027397,2]
[322224797,1712893832832,-531.83680044,0.00027397,2]
[322224799,1712893832842,-500.0,0.00027397,2]
[322224801,1712893832851,-425.18338309,0.00027397,2]
[322224803,1712893832860,-500.0,0.00027397,2]
[322224805,1712893832869,-500.0,0.00027397,2]
[322224807,1712893832878,-500.0,0.00027397,2]
[322224809,1712893832887,-500.0,0.00027397,2]
[322224811,1712893832896,-500.0,0.00027397,2]
[322224813,1712893832905,-500.0,0.00027397,2]
[322224815,1712893832914,-500.0,0.00027397,2]
[322224816,1712893832923,-560.0,0.00027397,2]
[322224818,1712893832933,-500.0,0.00027397,2]
[322224820,1712893832942,-951.87,0.00027397,2]
[322224822,1712893832951,-500.0,0.00027397,2]
[322224824,1712893832960,-500.0,0.00027397,2]
[322224826,1712893832970,-500.0,0.00027397,2]
[322224828,1712893832979,-1583.37,0.00027397,2]
[322224830,1712893832988,-500.0,0.00027397,2]
[322224832,1712893832997,-500.0,0.00027397,2]
[322224834,1712893833006,-500.0,0.00027397,2]
[322224836,1712893833015,-500.0,0.00027397,2]
[322224838,1712893833025,-500.0,0.00027397,2]
[322224840,1712893833034,-500.0,0.00027397,2]
[322224842,1712893833043,-506.17439702,0.00027397,2]
[322224844,1712893833053,-500.0,0.00027397,2]
[322224846,1712893833062,-500.0,0.00027397,2]
[322224848,1712893833071,-500.0,0.00027397,2]
[322224850,1712893833080,-500.0,0.00027397,2]
[322224852,1712893833089,-387.364157,0.00027397,2]
[322224854,1712893833098,-500.0,0.00027397,2]
[322224856,1712893833108,-500.0,0.00027397,2]
[322224858,1712893833116,-500.0,0.00027397,2]
[322224860,1712893833126,-500.0,0.00027397,2]
[322224862,1712893833135,-500.0,0.00027397,2]
[322224864,1712893833144,-500.0,0.00027397,2]
[322224866,1712893833153,-500.0,0.00027397,2]
[322224868,1712893833163,-547.41,0.00027397,2]
[322224870,1712893833173,-502.44730104,0.00027397,2]
[322224872,1712893833182,-500.0,0.00027397,2]
[322224875,1712893833192,-504.57623344,0.00027397,2]
[322224876,1712893833202,-500.0,0.00027397,2]
[322224878,1712893833211,-500.0,0.00027397,2]
[322224880,1712893833221,-257.44799294,0.00027397,2]
[322224882,1712893833231,-1527.23,0.00027397,2]
[322224884,1712893833240,-500.0,0.00027397,2]
[322224887,1712893833250,-500.0,0.00027397,2]
[322224889,1712893833259,-500.0,0.00027397,2]
[322224891,1712893833268,-500.0,0.00027397,2]
[322224893,1712893833278,-500.0,0.00027397,2]
[322224895,1712893833287,-500.0,0.00027397,2]
[322224897,1712893833296,-500.0,0.00027397,2]
[322224899,1712893833306,-500.0,0.00027397,2]
[322224901,1712893833315,-601.6177244,0.00027397,2]
[322224903,1712893833325,-500.0,0.00027397,2]
[322224905,1712893833334,-500.0,0.00027397,2]
[322224907,1712893833343,-312.56409725,0.00027397,2]
[322224909,1712893833352,-500.0,0.00027397,2]
[322224911,1712893833362,-518.85317409,0.00027397,2]
[322224913,1712893833372,-510.01553192,0.00027397,2]
[322224915,1712893833382,-505.31622603,0.00027397,2]
[322224917,1712893833391,-500.0,0.00027397,2]
[322224919,1712893833400,-500.0,0.00027397,2]
[322224921,1712893833409,-500.0,0.00027397,2]
[322224923,1712893833418,-1257.34,0.00027397,2]
[322224925,1712893833427,-500.0,0.00027397,2]
[322224927,1712893833436,-500.0,0.00027397,2]
[322224929,1712893833445,-500.0,0.00027397,2]
[322224931,1712893833455,-596.55194153,0.00027397,2]
[322224933,1712893833464,-500.0,0.00027397,2]
[322224935,1712893833473,-500.0,0.00027397,2]
[322224937,1712893833482,-831.38,0.00027397,2]
[322224939,1712893833491,-500.0,0.00027397,2]
[322224941,1712893833500,-501.66992607,0.00027397,2]
[322224943,1712893833510,-1194.44,0.00027397,2]
[322224945,1712893833519,-160.9641931,0.00027397,2]
[322224947,1712893833529,-502.8928658,0.00027397,2]
[322224949,1712893833538,-500.0,0.00027397,2]
[322224951,1712893833547,-500.0,0.00027397,2]
[322224953,1712893833557,-500.0,0.00027397,2]
[322224955,1712893833566,-500.0,0.00027397,2]
[322224957,1712893833575,-540.63323511,0.00027397,2]
[322224959,1712893833584,-209.4839518,0.00027397,2]
[322224961,1712893833593,-500.0,0.00027397,2]
[322224963,1712893833602,-500.0,0.00027397,2]
[322224965,1712893833612,-500.0,0.00027397,2]
[322224967,1712893833621,-779.45,0.00027397,2]
[322224969,1712893833630,-508.11805661,0.00027397,2]
[322224971,1712893833639,-500.0,0.00027397,2]
[322224973,1712893833649,-500.0,0.00027397,2]
[322224976,1712893833659,-500.46355523,0.00027397,2]
[322224978,1712893833668,-252.57180173,0.00027397,2]